{"text_format":"1","workbook":"xlsx","n_sheets":7,"sheets":["MENU ","Feuil1","Opérations","Récapitulatif ","Formulaire","Tableau de Bord","HISTORIQUES"],"not_rendered":{"charts":0,"images":0,"macros":1,"external_links":0,"defined_names":4,"comments":0,"pivot_tables":3},"unopened":[],"bounds":{"document_bytes":16777216,"sheet_cells":100000,"rows_first":2000,"rows_last":500,"rows_between":2000,"halvings":0,"cell_chars":16384,"cell_head_chars":4096},"cells_cut":0,"cells_raw":0,"read":"whole","date_system":"1900"}

{"sheet":"MENU ","index":0,"n_rows":0,"n_cols":0,"rows_kept":0,"cut":false,"hidden":false,"merged":[]}

{"sheet":"Feuil1","index":1,"n_rows":21,"n_cols":2,"rows_kept":21,"cut":false,"hidden":false,"merged":[]}
["Étiquettes de lignes","Somme de exp cash"]
["(vide)",0]
["2019-12-14",0]
["2019-11-14",0]
["2015-05-12",0]
["2013-05-05",0]
["2005-02-12",0]
["2005-02-02",0]
["00:00:00",0]
["Total général",0]
[]
["Étiquettes de lignes","Somme de Exp MOMO"]
["(vide)",0]
["2019-12-14",0]
["2019-11-14",0]
["2015-05-12",0]
["2013-05-05",0]
["2005-02-12",0]
["2005-02-02",1500000]
["00:00:00",0]
["Total général",1500000]

{"sheet":"Opérations","index":2,"n_rows":40,"n_cols":9,"rows_kept":40,"cut":false,"hidden":false,"merged":[]}
[{"$f":"'Récapitulatif '!A1:A1074","v":"DATE"},{"$f":"'Récapitulatif '!B:B","v":"NOM EXPEDITEUR"},"exp cash","Exp MOMO","Exp Banque","Prêt ","Remboursement","Retrait Chèque","Retrait cash"]
[{"$f":"'Récapitulatif '!A3","v":"2019-12-14"},{"$f":"'Récapitulatif '!B3","v":"mm"},{"$f":"IF('Récapitulatif '!D3=Opérations!$C$1,'Récapitulatif '!E3,0)","v":0},{"$f":"IF('Récapitulatif '!D3=Opérations!$D$1,'Récapitulatif '!E3,0)","v":20000},{"$f":"IF('Récapitulatif '!D3=Opérations!$E$1,'Récapitulatif '!E3,0)","v":0},{"$f":"IF('Récapitulatif '!D3=Opérations!$F$1,'Récapitulatif '!E3,0)","v":0},{"$f":"IF('Récapitulatif '!D3=Opérations!$G$1,'Récapitulatif '!E3,0)","v":0},{"$f":"IF('Récapitulatif '!D3=Opérations!$H$1,'Récapitulatif '!E3,0)","v":0},{"$f":"IF('Récapitulatif '!D3=Opérations!$I$1,'Récapitulatif '!E3,0)","v":0}]
[{"$f":"'Récapitulatif '!A4","v":"00:00:00"},{"$f":"'Récapitulatif '!B4","v":"mm"},{"$f":"IF('Récapitulatif '!D4=Opérations!$C$1,'Récapitulatif '!E4,0)","v":0},{"$f":"IF('Récapitulatif '!D4=Opérations!$D$1,'Récapitulatif '!E4,0)","v":20000},{"$f":"IF('Récapitulatif '!D4=Opérations!$E$1,'Récapitulatif '!E4,0)","v":0},{"$f":"IF('Récapitulatif '!D4=Opérations!$F$1,'Récapitulatif '!E4,0)","v":0},{"$f":"IF('Récapitulatif '!D4=Opérations!$G$1,'Récapitulatif '!E4,0)","v":0},{"$f":"IF('Récapitulatif '!D4=Opérations!$H$1,'Récapitulatif '!E4,0)","v":0},{"$f":"IF('Récapitulatif '!D4=Opérations!$I$1,'Récapitulatif '!E4,0)","v":0}]
[{"$f":"'Récapitulatif '!A5","v":"2019-12-14"},{"$f":"'Récapitulatif '!B5","v":"mm"},{"$f":"IF('Récapitulatif '!D5=Opérations!$C$1,'Récapitulatif '!E5,0)","v":0},{"$f":"IF('Récapitulatif '!D5=Opérations!$D$1,'Récapitulatif '!E5,0)","v":0},{"$f":"IF('Récapitulatif '!D5=Opérations!$E$1,'Récapitulatif '!E5,0)","v":0},{"$f":"IF('Récapitulatif '!D5=Opérations!$F$1,'Récapitulatif '!E5,0)","v":0},{"$f":"IF('Récapitulatif '!D5=Opérations!$G$1,'Récapitulatif '!E5,0)","v":0},{"$f":"IF('Récapitulatif '!D5=Opérations!$H$1,'Récapitulatif '!E5,0)","v":0},{"$f":"IF('Récapitulatif '!D5=Opérations!$I$1,'Récapitulatif '!E5,0)","v":20000}]
[{"$f":"'Récapitulatif '!A6","v":"2019-12-14"},{"$f":"'Récapitulatif '!B6","v":"mm"},{"$f":"IF('Récapitulatif '!D6=Opérations!$C$1,'Récapitulatif '!E6,0)","v":0},{"$f":"IF('Récapitulatif '!D6=Opérations!$D$1,'Récapitulatif '!E6,0)","v":0},{"$f":"IF('Récapitulatif '!D6=Opérations!$E$1,'Récapitulatif '!E6,0)","v":0},{"$f":"IF('Récapitulatif '!D6=Opérations!$F$1,'Récapitulatif '!E6,0)","v":0},{"$f":"IF('Récapitulatif '!D6=Opérations!$G$1,'Récapitulatif '!E6,0)","v":0},{"$f":"IF('Récapitulatif '!D6=Opérations!$H$1,'Récapitulatif '!E6,0)","v":0},{"$f":"IF('Récapitulatif '!D6=Opérations!$I$1,'Récapitulatif '!E6,0)","v":20000}]
[{"$f":"'Récapitulatif '!A7","v":"2019-12-14"},{"$f":"'Récapitulatif '!B7","v":"mm"},{"$f":"IF('Récapitulatif '!D7=Opérations!$C$1,'Récapitulatif '!E7,0)","v":0},{"$f":"IF('Récapitulatif '!D7=Opérations!$D$1,'Récapitulatif '!E7,0)","v":0},{"$f":"IF('Récapitulatif '!D7=Opérations!$E$1,'Récapitulatif '!E7,0)","v":0},{"$f":"IF('Récapitulatif '!D7=Opérations!$F$1,'Récapitulatif '!E7,0)","v":0},{"$f":"IF('Récapitulatif '!D7=Opérations!$G$1,'Récapitulatif '!E7,0)","v":20000},{"$f":"IF('Récapitulatif '!D7=Opérations!$H$1,'Récapitulatif '!E7,0)","v":0},{"$f":"IF('Récapitulatif '!D7=Opérations!$I$1,'Récapitulatif '!E7,0)","v":0}]
[{"$f":"'Récapitulatif '!A8","v":"2019-11-14"},{"$f":"'Récapitulatif '!B8","v":"mm"},{"$f":"IF('Récapitulatif '!D8=Opérations!$C$1,'Récapitulatif '!E8,0)","v":0},{"$f":"IF('Récapitulatif '!D8=Opérations!$D$1,'Récapitulatif '!E8,0)","v":0},{"$f":"IF('Récapitulatif '!D8=Opérations!$E$1,'Récapitulatif '!E8,0)","v":0},{"$f":"IF('Récapitulatif '!D8=Opérations!$F$1,'Récapitulatif '!E8,0)","v":0},{"$f":"IF('Récapitulatif '!D8=Opérations!$G$1,'Récapitulatif '!E8,0)","v":20000},{"$f":"IF('Récapitulatif '!D8=Opérations!$H$1,'Récapitulatif '!E8,0)","v":0},{"$f":"IF('Récapitulatif '!D8=Opérations!$I$1,'Récapitulatif '!E8,0)","v":0}]
[{"$f":"'Récapitulatif '!A9","v":"2019-12-14"},{"$f":"'Récapitulatif '!B9","v":"mm"},{"$f":"IF('Récapitulatif '!D9=Opérations!$C$1,'Récapitulatif '!E9,0)","v":0},{"$f":"IF('Récapitulatif '!D9=Opérations!$D$1,'Récapitulatif '!E9,0)","v":0},{"$f":"IF('Récapitulatif '!D9=Opérations!$E$1,'Récapitulatif '!E9,0)","v":0},{"$f":"IF('Récapitulatif '!D9=Opérations!$F$1,'Récapitulatif '!E9,0)","v":0},{"$f":"IF('Récapitulatif '!D9=Opérations!$G$1,'Récapitulatif '!E9,0)","v":20000},{"$f":"IF('Récapitulatif '!D9=Opérations!$H$1,'Récapitulatif '!E9,0)","v":0},{"$f":"IF('Récapitulatif '!D9=Opérations!$I$1,'Récapitulatif '!E9,0)","v":0}]
[{"$f":"'Récapitulatif '!A10","v":"2013-05-05"},null,{"$f":"IF('Récapitulatif '!D10=Opérations!$C$1,'Récapitulatif '!E10,0)","v":0},{"$f":"IF('Récapitulatif '!D10=Opérations!$D$1,'Récapitulatif '!E10,0)","v":0},{"$f":"IF('Récapitulatif '!D10=Opérations!$E$1,'Récapitulatif '!E10,0)","v":0},{"$f":"IF('Récapitulatif '!D10=Opérations!$F$1,'Récapitulatif '!E10,0)","v":0},{"$f":"IF('Récapitulatif '!D10=Opérations!$G$1,'Récapitulatif '!E10,0)","v":20000},{"$f":"IF('Récapitulatif '!D10=Opérations!$H$1,'Récapitulatif '!E10,0)","v":0},{"$f":"IF('Récapitulatif '!D10=Opérations!$I$1,'Récapitulatif '!E10,0)","v":0}]
[{"$f":"'Récapitulatif '!A11","v":"2013-05-05"},null,{"$f":"IF('Récapitulatif '!D11=Opérations!$C$1,'Récapitulatif '!E11,0)","v":0},{"$f":"IF('Récapitulatif '!D11=Opérations!$D$1,'Récapitulatif '!E11,0)","v":0},{"$f":"IF('Récapitulatif '!D11=Opérations!$E$1,'Récapitulatif '!E11,0)","v":0},{"$f":"IF('Récapitulatif '!D11=Opérations!$F$1,'Récapitulatif '!E11,0)","v":0},{"$f":"IF('Récapitulatif '!D11=Opérations!$G$1,'Récapitulatif '!E11,0)","v":0},{"$f":"IF('Récapitulatif '!D11=Opérations!$H$1,'Récapitulatif '!E11,0)","v":0},{"$f":"IF('Récapitulatif '!D11=Opérations!$I$1,'Récapitulatif '!E11,0)","v":20000}]
[{"$f":"'Récapitulatif '!A12","v":"2013-05-05"},null,{"$f":"IF('Récapitulatif '!D12=Opérations!$C$1,'Récapitulatif '!E12,0)","v":0},{"$f":"IF('Récapitulatif '!D12=Opérations!$D$1,'Récapitulatif '!E12,0)","v":0},{"$f":"IF('Récapitulatif '!D12=Opérations!$E$1,'Récapitulatif '!E12,0)","v":0},{"$f":"IF('Récapitulatif '!D12=Opérations!$F$1,'Récapitulatif '!E12,0)","v":0},{"$f":"IF('Récapitulatif '!D12=Opérations!$G$1,'Récapitulatif '!E12,0)","v":0},{"$f":"IF('Récapitulatif '!D12=Opérations!$H$1,'Récapitulatif '!E12,0)","v":0},{"$f":"IF('Récapitulatif '!D12=Opérations!$I$1,'Récapitulatif '!E12,0)","v":20000}]
[{"$f":"'Récapitulatif '!A13","v":"2013-05-05"},null,{"$f":"IF('Récapitulatif '!D13=Opérations!$C$1,'Récapitulatif '!E13,0)","v":0},{"$f":"IF('Récapitulatif '!D13=Opérations!$D$1,'Récapitulatif '!E13,0)","v":0},{"$f":"IF('Récapitulatif '!D13=Opérations!$E$1,'Récapitulatif '!E13,0)","v":0},{"$f":"IF('Récapitulatif '!D13=Opérations!$F$1,'Récapitulatif '!E13,0)","v":0},{"$f":"IF('Récapitulatif '!D13=Opérations!$G$1,'Récapitulatif '!E13,0)","v":0},{"$f":"IF('Récapitulatif '!D13=Opérations!$H$1,'Récapitulatif '!E13,0)","v":0},{"$f":"IF('Récapitulatif '!D13=Opérations!$I$1,'Récapitulatif '!E13,0)","v":20000}]
[{"$f":"'Récapitulatif '!A14","v":"2013-05-05"},null,{"$f":"IF('Récapitulatif '!D14=Opérations!$C$1,'Récapitulatif '!E14,0)","v":0},{"$f":"IF('Récapitulatif '!D14=Opérations!$D$1,'Récapitulatif '!E14,0)","v":0},{"$f":"IF('Récapitulatif '!D14=Opérations!$E$1,'Récapitulatif '!E14,0)","v":50000},{"$f":"IF('Récapitulatif '!D14=Opérations!$F$1,'Récapitulatif '!E14,0)","v":0},{"$f":"IF('Récapitulatif '!D14=Opérations!$G$1,'Récapitulatif '!E14,0)","v":0},{"$f":"IF('Récapitulatif '!D14=Opérations!$H$1,'Récapitulatif '!E14,0)","v":0},{"$f":"IF('Récapitulatif '!D14=Opérations!$I$1,'Récapitulatif '!E14,0)","v":0}]
[{"$f":"'Récapitulatif '!A15","v":"2013-05-05"},null,{"$f":"IF('Récapitulatif '!D15=Opérations!$C$1,'Récapitulatif '!E15,0)","v":0},{"$f":"IF('Récapitulatif '!D15=Opérations!$D$1,'Récapitulatif '!E15,0)","v":0},{"$f":"IF('Récapitulatif '!D15=Opérations!$E$1,'Récapitulatif '!E15,0)","v":50000},{"$f":"IF('Récapitulatif '!D15=Opérations!$F$1,'Récapitulatif '!E15,0)","v":0},{"$f":"IF('Récapitulatif '!D15=Opérations!$G$1,'Récapitulatif '!E15,0)","v":0},{"$f":"IF('Récapitulatif '!D15=Opérations!$H$1,'Récapitulatif '!E15,0)","v":0},{"$f":"IF('Récapitulatif '!D15=Opérations!$I$1,'Récapitulatif '!E15,0)","v":0}]
[{"$f":"'Récapitulatif '!A16","v":"2013-05-05"},null,{"$f":"IF('Récapitulatif '!D16=Opérations!$C$1,'Récapitulatif '!E16,0)","v":0},{"$f":"IF('Récapitulatif '!D16=Opérations!$D$1,'Récapitulatif '!E16,0)","v":0},{"$f":"IF('Récapitulatif '!D16=Opérations!$E$1,'Récapitulatif '!E16,0)","v":50000},{"$f":"IF('Récapitulatif '!D16=Opérations!$F$1,'Récapitulatif '!E16,0)","v":0},{"$f":"IF('Récapitulatif '!D16=Opérations!$G$1,'Récapitulatif '!E16,0)","v":0},{"$f":"IF('Récapitulatif '!D16=Opérations!$H$1,'Récapitulatif '!E16,0)","v":0},{"$f":"IF('Récapitulatif '!D16=Opérations!$I$1,'Récapitulatif '!E16,0)","v":0}]
[{"$f":"'Récapitulatif '!A17","v":"2013-05-05"},null,{"$f":"IF('Récapitulatif '!D17=Opérations!$C$1,'Récapitulatif '!E17,0)","v":0},{"$f":"IF('Récapitulatif '!D17=Opérations!$D$1,'Récapitulatif '!E17,0)","v":0},{"$f":"IF('Récapitulatif '!D17=Opérations!$E$1,'Récapitulatif '!E17,0)","v":50000},{"$f":"IF('Récapitulatif '!D17=Opérations!$F$1,'Récapitulatif '!E17,0)","v":0},{"$f":"IF('Récapitulatif '!D17=Opérations!$G$1,'Récapitulatif '!E17,0)","v":0},{"$f":"IF('Récapitulatif '!D17=Opérations!$H$1,'Récapitulatif '!E17,0)","v":0},{"$f":"IF('Récapitulatif '!D17=Opérations!$I$1,'Récapitulatif '!E17,0)","v":0}]
[{"$f":"'Récapitulatif '!A18","v":"00:00:00"},null,{"$f":"IF('Récapitulatif '!D18=Opérations!$C$1,'Récapitulatif '!E18,0)","v":0},{"$f":"IF('Récapitulatif '!D18=Opérations!$D$1,'Récapitulatif '!E18,0)","v":0},{"$f":"IF('Récapitulatif '!D18=Opérations!$E$1,'Récapitulatif '!E18,0)","v":50000},{"$f":"IF('Récapitulatif '!D18=Opérations!$F$1,'Récapitulatif '!E18,0)","v":0},{"$f":"IF('Récapitulatif '!D18=Opérations!$G$1,'Récapitulatif '!E18,0)","v":0},{"$f":"IF('Récapitulatif '!D18=Opérations!$H$1,'Récapitulatif '!E18,0)","v":0},{"$f":"IF('Récapitulatif '!D18=Opérations!$I$1,'Récapitulatif '!E18,0)","v":0}]
[{"$f":"'Récapitulatif '!A19","v":"2013-05-05"},null,{"$f":"IF('Récapitulatif '!D19=Opérations!$C$1,'Récapitulatif '!E19,0)","v":0},{"$f":"IF('Récapitulatif '!D19=Opérations!$D$1,'Récapitulatif '!E19,0)","v":0},{"$f":"IF('Récapitulatif '!D19=Opérations!$E$1,'Récapitulatif '!E19,0)","v":50000},{"$f":"IF('Récapitulatif '!D19=Opérations!$F$1,'Récapitulatif '!E19,0)","v":0},{"$f":"IF('Récapitulatif '!D19=Opérations!$G$1,'Récapitulatif '!E19,0)","v":0},{"$f":"IF('Récapitulatif '!D19=Opérations!$H$1,'Récapitulatif '!E19,0)","v":0},{"$f":"IF('Récapitulatif '!D19=Opérations!$I$1,'Récapitulatif '!E19,0)","v":0}]
[{"$f":"'Récapitulatif '!A20","v":"2005-02-02"},null,{"$f":"IF('Récapitulatif '!D20=Opérations!$C$1,'Récapitulatif '!E20,0)","v":0},{"$f":"IF('Récapitulatif '!D20=Opérations!$D$1,'Récapitulatif '!E20,0)","v":500000},{"$f":"IF('Récapitulatif '!D20=Opérations!$E$1,'Récapitulatif '!E20,0)","v":0},{"$f":"IF('Récapitulatif '!D20=Opérations!$F$1,'Récapitulatif '!E20,0)","v":0},{"$f":"IF('Récapitulatif '!D20=Opérations!$G$1,'Récapitulatif '!E20,0)","v":0},{"$f":"IF('Récapitulatif '!D20=Opérations!$H$1,'Récapitulatif '!E20,0)","v":0},{"$f":"IF('Récapitulatif '!D20=Opérations!$I$1,'Récapitulatif '!E20,0)","v":0}]
[{"$f":"'Récapitulatif '!A21","v":"2005-02-02"},null,{"$f":"IF('Récapitulatif '!D21=Opérations!$C$1,'Récapitulatif '!E21,0)","v":0},{"$f":"IF('Récapitulatif '!D21=Opérations!$D$1,'Récapitulatif '!E21,0)","v":500000},{"$f":"IF('Récapitulatif '!D21=Opérations!$E$1,'Récapitulatif '!E21,0)","v":0},{"$f":"IF('Récapitulatif '!D21=Opérations!$F$1,'Récapitulatif '!E21,0)","v":0},{"$f":"IF('Récapitulatif '!D21=Opérations!$G$1,'Récapitulatif '!E21,0)","v":0},{"$f":"IF('Récapitulatif '!D21=Opérations!$H$1,'Récapitulatif '!E21,0)","v":0},{"$f":"IF('Récapitulatif '!D21=Opérations!$I$1,'Récapitulatif '!E21,0)","v":0}]
[{"$f":"'Récapitulatif '!A22","v":"2005-02-02"},null,{"$f":"IF('Récapitulatif '!D22=Opérations!$C$1,'Récapitulatif '!E22,0)","v":0},{"$f":"IF('Récapitulatif '!D22=Opérations!$D$1,'Récapitulatif '!E22,0)","v":500000},{"$f":"IF('Récapitulatif '!D22=Opérations!$E$1,'Récapitulatif '!E22,0)","v":0},{"$f":"IF('Récapitulatif '!D22=Opérations!$F$1,'Récapitulatif '!E22,0)","v":0},{"$f":"IF('Récapitulatif '!D22=Opérations!$G$1,'Récapitulatif '!E22,0)","v":0},{"$f":"IF('Récapitulatif '!D22=Opérations!$H$1,'Récapitulatif '!E22,0)","v":0},{"$f":"IF('Récapitulatif '!D22=Opérations!$I$1,'Récapitulatif '!E22,0)","v":0}]
[{"$f":"'Récapitulatif '!A23","v":"2005-02-02"},null,{"$f":"IF('Récapitulatif '!D23=Opérations!$C$1,'Récapitulatif '!E23,0)","v":0},{"$f":"IF('Récapitulatif '!D23=Opérations!$D$1,'Récapitulatif '!E23,0)","v":0},{"$f":"IF('Récapitulatif '!D23=Opérations!$E$1,'Récapitulatif '!E23,0)","v":0},{"$f":"IF('Récapitulatif '!D23=Opérations!$F$1,'Récapitulatif '!E23,0)","v":0},{"$f":"IF('Récapitulatif '!D23=Opérations!$G$1,'Récapitulatif '!E23,0)","v":500000},{"$f":"IF('Récapitulatif '!D23=Opérations!$H$1,'Récapitulatif '!E23,0)","v":0},{"$f":"IF('Récapitulatif '!D23=Opérations!$I$1,'Récapitulatif '!E23,0)","v":0}]
[{"$f":"'Récapitulatif '!A24","v":"2005-02-12"},null,{"$f":"IF('Récapitulatif '!D24=Opérations!$C$1,'Récapitulatif '!E24,0)","v":0},{"$f":"IF('Récapitulatif '!D24=Opérations!$D$1,'Récapitulatif '!E24,0)","v":0},{"$f":"IF('Récapitulatif '!D24=Opérations!$E$1,'Récapitulatif '!E24,0)","v":0},{"$f":"IF('Récapitulatif '!D24=Opérations!$F$1,'Récapitulatif '!E24,0)","v":500000},{"$f":"IF('Récapitulatif '!D24=Opérations!$G$1,'Récapitulatif '!E24,0)","v":0},{"$f":"IF('Récapitulatif '!D24=Opérations!$H$1,'Récapitulatif '!E24,0)","v":0},{"$f":"IF('Récapitulatif '!D24=Opérations!$I$1,'Récapitulatif '!E24,0)","v":0}]
[{"$f":"'Récapitulatif '!A25","v":"2005-02-12"},null,{"$f":"IF('Récapitulatif '!D25=Opérations!$C$1,'Récapitulatif '!E25,0)","v":0},{"$f":"IF('Récapitulatif '!D25=Opérations!$D$1,'Récapitulatif '!E25,0)","v":0},{"$f":"IF('Récapitulatif '!D25=Opérations!$E$1,'Récapitulatif '!E25,0)","v":0},{"$f":"IF('Récapitulatif '!D25=Opérations!$F$1,'Récapitulatif '!E25,0)","v":500000},{"$f":"IF('Récapitulatif '!D25=Opérations!$G$1,'Récapitulatif '!E25,0)","v":0},{"$f":"IF('Récapitulatif '!D25=Opérations!$H$1,'Récapitulatif '!E25,0)","v":0},{"$f":"IF('Récapitulatif '!D25=Opérations!$I$1,'Récapitulatif '!E25,0)","v":0}]
[{"$f":"'Récapitulatif '!A26","v":"00:00:00"},null,{"$f":"IF('Récapitulatif '!D26=Opérations!$C$1,'Récapitulatif '!E26,0)","v":0},{"$f":"IF('Récapitulatif '!D26=Opérations!$D$1,'Récapitulatif '!E26,0)","v":0},{"$f":"IF('Récapitulatif '!D26=Opérations!$E$1,'Récapitulatif '!E26,0)","v":0},{"$f":"IF('Récapitulatif '!D26=Opérations!$F$1,'Récapitulatif '!E26,0)","v":0},{"$f":"IF('Récapitulatif '!D26=Opérations!$G$1,'Récapitulatif '!E26,0)","v":0},{"$f":"IF('Récapitulatif '!D26=Opérations!$H$1,'Récapitulatif '!E26,0)","v":0},{"$f":"IF('Récapitulatif '!D26=Opérations!$I$1,'Récapitulatif '!E26,0)","v":0}]
[{"$f":"'Récapitulatif '!A27","v":"2015-05-12"},null,{"$f":"IF('Récapitulatif '!D27=Opérations!$C$1,'Récapitulatif '!E27,0)","v":0},{"$f":"IF('Récapitulatif '!D27=Opérations!$D$1,'Récapitulatif '!E27,0)","v":0},{"$f":"IF('Récapitulatif '!D27=Opérations!$E$1,'Récapitulatif '!E27,0)","v":0},{"$f":"IF('Récapitulatif '!D27=Opérations!$F$1,'Récapitulatif '!E27,0)","v":0},{"$f":"IF('Récapitulatif '!D27=Opérations!$G$1,'Récapitulatif '!E27,0)","v":1000000},{"$f":"IF('Récapitulatif '!D27=Opérations!$H$1,'Récapitulatif '!E27,0)","v":0},{"$f":"IF('Récapitulatif '!D27=Opérations!$I$1,'Récapitulatif '!E27,0)","v":0}]
[{"$f":"'Récapitulatif '!A77","v":"00:00:00"},null,{"$f":"IF('Récapitulatif '!D28=Opérations!$C$1,'Récapitulatif '!E28,0)","v":0},{"$f":"IF('Récapitulatif '!D28=Opérations!$D$1,'Récapitulatif '!E28,0)","v":0},{"$f":"IF('Récapitulatif '!D28=Opérations!$E$1,'Récapitulatif '!E28,0)","v":0},{"$f":"IF('Récapitulatif '!D28=Opérations!$F$1,'Récapitulatif '!E28,0)","v":1000000},{"$f":"IF('Récapitulatif '!D28=Opérations!$G$1,'Récapitulatif '!E28,0)","v":0},{"$f":"IF('Récapitulatif '!D28=Opérations!$H$1,'Récapitulatif '!E28,0)","v":0},{"$f":"IF('Récapitulatif '!D28=Opérations!$I$1,'Récapitulatif '!E28,0)","v":0}]
[null,null,{"$f":"IF('Récapitulatif '!D28=Opérations!$C$1,'Récapitulatif '!E28,0)","v":0},{"$f":"IF('Récapitulatif '!D28=Opérations!$D$1,'Récapitulatif '!E28,0)","v":0},{"$f":"IF('Récapitulatif '!D29=Opérations!$E$1,'Récapitulatif '!E29,0)","v":0},{"$f":"IF('Récapitulatif '!D28=Opérations!$F$1,'Récapitulatif '!E28,0)","v":1000000},{"$f":"IF('Récapitulatif '!D28=Opérations!$G$1,'Récapitulatif '!E28,0)","v":0},{"$f":"IF('Récapitulatif '!D28=Opérations!$H$1,'Récapitulatif '!E28,0)","v":0},{"$f":"IF('Récapitulatif '!D29=Opérations!$I$1,'Récapitulatif '!E29,0)","v":0}]
[null,null,{"$f":"IF('Récapitulatif '!D29=Opérations!$C$1,'Récapitulatif '!E29,0)","v":0},{"$f":"IF('Récapitulatif '!D29=Opérations!$D$1,'Récapitulatif '!E29,0)","v":0},{"$f":"IF('Récapitulatif '!D30=Opérations!$E$1,'Récapitulatif '!E30,0)","v":0},{"$f":"IF('Récapitulatif '!D29=Opérations!$F$1,'Récapitulatif '!E29,0)","v":0},{"$f":"IF('Récapitulatif '!D29=Opérations!$G$1,'Récapitulatif '!E29,0)","v":0},{"$f":"IF('Récapitulatif '!D29=Opérations!$H$1,'Récapitulatif '!E29,0)","v":2000000},{"$f":"IF('Récapitulatif '!D30=Opérations!$I$1,'Récapitulatif '!E30,0)","v":0}]
[null,null,{"$f":"IF('Récapitulatif '!D30=Opérations!$C$1,'Récapitulatif '!E30,0)","v":0},{"$f":"IF('Récapitulatif '!D30=Opérations!$D$1,'Récapitulatif '!E30,0)","v":0},{"$f":"IF('Récapitulatif '!D31=Opérations!$E$1,'Récapitulatif '!E31,0)","v":0},{"$f":"IF('Récapitulatif '!D30=Opérations!$F$1,'Récapitulatif '!E30,0)","v":0},{"$f":"IF('Récapitulatif '!D30=Opérations!$G$1,'Récapitulatif '!E30,0)","v":0},{"$f":"IF('Récapitulatif '!D30=Opérations!$H$1,'Récapitulatif '!E30,0)","v":2000000},{"$f":"IF('Récapitulatif '!D31=Opérations!$I$1,'Récapitulatif '!E31,0)","v":0}]
[null,null,{"$f":"IF('Récapitulatif '!D31=Opérations!$C$1,'Récapitulatif '!E31,0)","v":0},{"$f":"IF('Récapitulatif '!D31=Opérations!$D$1,'Récapitulatif '!E31,0)","v":0},{"$f":"IF('Récapitulatif '!D32=Opérations!$E$1,'Récapitulatif '!E32,0)","v":0},{"$f":"IF('Récapitulatif '!D31=Opérations!$F$1,'Récapitulatif '!E31,0)","v":0},{"$f":"IF('Récapitulatif '!D31=Opérations!$G$1,'Récapitulatif '!E31,0)","v":0},{"$f":"IF('Récapitulatif '!D31=Opérations!$H$1,'Récapitulatif '!E31,0)","v":2000000},{"$f":"IF('Récapitulatif '!D32=Opérations!$I$1,'Récapitulatif '!E32,0)","v":0}]
[null,null,{"$f":"IF('Récapitulatif '!D32=Opérations!$C$1,'Récapitulatif '!E32,0)","v":0},{"$f":"IF('Récapitulatif '!D32=Opérations!$D$1,'Récapitulatif '!E32,0)","v":0},{"$f":"IF('Récapitulatif '!D33=Opérations!$E$1,'Récapitulatif '!E33,0)","v":0},{"$f":"IF('Récapitulatif '!D32=Opérations!$F$1,'Récapitulatif '!E32,0)","v":0},{"$f":"IF('Récapitulatif '!D32=Opérations!$G$1,'Récapitulatif '!E32,0)","v":0},{"$f":"IF('Récapitulatif '!D32=Opérations!$H$1,'Récapitulatif '!E32,0)","v":2000000},{"$f":"IF('Récapitulatif '!D33=Opérations!$I$1,'Récapitulatif '!E33,0)","v":0}]
[null,null,{"$f":"IF('Récapitulatif '!D33=Opérations!$C$1,'Récapitulatif '!E33,0)","v":0},{"$f":"IF('Récapitulatif '!D33=Opérations!$D$1,'Récapitulatif '!E33,0)","v":0},{"$f":"IF('Récapitulatif '!D34=Opérations!$E$1,'Récapitulatif '!E34,0)","v":0},{"$f":"IF('Récapitulatif '!D33=Opérations!$F$1,'Récapitulatif '!E33,0)","v":0},{"$f":"IF('Récapitulatif '!D33=Opérations!$G$1,'Récapitulatif '!E33,0)","v":0},{"$f":"IF('Récapitulatif '!D33=Opérations!$H$1,'Récapitulatif '!E33,0)","v":2000000},{"$f":"IF('Récapitulatif '!D34=Opérations!$I$1,'Récapitulatif '!E34,0)","v":0}]
[null,null,{"$f":"IF('Récapitulatif '!D34=Opérations!$C$1,'Récapitulatif '!E34,0)","v":0},{"$f":"IF('Récapitulatif '!D34=Opérations!$D$1,'Récapitulatif '!E34,0)","v":0},{"$f":"IF('Récapitulatif '!D35=Opérations!$E$1,'Récapitulatif '!E35,0)","v":0},{"$f":"IF('Récapitulatif '!D34=Opérations!$F$1,'Récapitulatif '!E34,0)","v":0},{"$f":"IF('Récapitulatif '!D34=Opérations!$G$1,'Récapitulatif '!E34,0)","v":0},{"$f":"IF('Récapitulatif '!D34=Opérations!$H$1,'Récapitulatif '!E34,0)","v":0},{"$f":"IF('Récapitulatif '!D35=Opérations!$I$1,'Récapitulatif '!E35,0)","v":0}]
[null,null,{"$f":"IF('Récapitulatif '!D35=Opérations!$C$1,'Récapitulatif '!E35,0)","v":0},{"$f":"IF('Récapitulatif '!D35=Opérations!$D$1,'Récapitulatif '!E35,0)","v":0},{"$f":"IF('Récapitulatif '!D36=Opérations!$E$1,'Récapitulatif '!E36,0)","v":0},{"$f":"IF('Récapitulatif '!D35=Opérations!$F$1,'Récapitulatif '!E35,0)","v":0},{"$f":"IF('Récapitulatif '!D35=Opérations!$G$1,'Récapitulatif '!E35,0)","v":0},{"$f":"IF('Récapitulatif '!D35=Opérations!$H$1,'Récapitulatif '!E35,0)","v":0},{"$f":"IF('Récapitulatif '!D36=Opérations!$I$1,'Récapitulatif '!E36,0)","v":0}]
[null,null,{"$f":"IF('Récapitulatif '!D36=Opérations!$C$1,'Récapitulatif '!E36,0)","v":0},{"$f":"IF('Récapitulatif '!D36=Opérations!$D$1,'Récapitulatif '!E36,0)","v":0},{"$f":"IF('Récapitulatif '!D36=Opérations!$E$1,'Récapitulatif '!E36,0)","v":0},{"$f":"IF('Récapitulatif '!D36=Opérations!$F$1,'Récapitulatif '!E36,0)","v":0},{"$f":"IF('Récapitulatif '!D36=Opérations!$G$1,'Récapitulatif '!E36,0)","v":0},{"$f":"IF('Récapitulatif '!D36=Opérations!$H$1,'Récapitulatif '!E36,0)","v":0},{"$f":"IF('Récapitulatif '!D37=Opérations!$I$1,'Récapitulatif '!E37,0)","v":0}]
[null,null,{"$f":"IF('Récapitulatif '!D37=Opérations!$C$1,'Récapitulatif '!E37,0)","v":0},{"$f":"IF('Récapitulatif '!D37=Opérations!$D$1,'Récapitulatif '!E37,0)","v":0},{"$f":"IF('Récapitulatif '!D37=Opérations!$E$1,'Récapitulatif '!E37,0)","v":0},{"$f":"IF('Récapitulatif '!D37=Opérations!$F$1,'Récapitulatif '!E37,0)","v":0},{"$f":"IF('Récapitulatif '!D37=Opérations!$G$1,'Récapitulatif '!E37,0)","v":0},{"$f":"IF('Récapitulatif '!D37=Opérations!$H$1,'Récapitulatif '!E37,0)","v":0},{"$f":"IF('Récapitulatif '!D38=Opérations!$I$1,'Récapitulatif '!E38,0)","v":0}]
[null,null,{"$f":"IF('Récapitulatif '!D38=Opérations!$C$1,'Récapitulatif '!E38,0)","v":0},{"$f":"IF('Récapitulatif '!D38=Opérations!$D$1,'Récapitulatif '!E38,0)","v":0},{"$f":"IF('Récapitulatif '!D38=Opérations!$E$1,'Récapitulatif '!E38,0)","v":0},{"$f":"IF('Récapitulatif '!D38=Opérations!$F$1,'Récapitulatif '!E38,0)","v":0},{"$f":"IF('Récapitulatif '!D38=Opérations!$G$1,'Récapitulatif '!E38,0)","v":0},{"$f":"IF('Récapitulatif '!D38=Opérations!$H$1,'Récapitulatif '!E38,0)","v":0},{"$f":"IF('Récapitulatif '!D39=Opérations!$I$1,'Récapitulatif '!E39,0)","v":0}]
[null,null,{"$f":"IF('Récapitulatif '!D39=Opérations!$C$1,'Récapitulatif '!E39,0)","v":0},{"$f":"IF('Récapitulatif '!D39=Opérations!$D$1,'Récapitulatif '!E39,0)","v":0},{"$f":"IF('Récapitulatif '!D39=Opérations!$E$1,'Récapitulatif '!E39,0)","v":0},{"$f":"IF('Récapitulatif '!D39=Opérations!$F$1,'Récapitulatif '!E39,0)","v":0},{"$f":"IF('Récapitulatif '!D39=Opérations!$G$1,'Récapitulatif '!E39,0)","v":0},{"$f":"IF('Récapitulatif '!D39=Opérations!$H$1,'Récapitulatif '!E39,0)","v":0},{"$f":"IF('Récapitulatif '!D40=Opérations!$I$1,'Récapitulatif '!#REF!,0)","v":0}]
[null,null,{"$f":"IF('Récapitulatif '!D40=Opérations!$C$1,'Récapitulatif '!E40,0)","v":0},{"$f":"IF('Récapitulatif '!D40=Opérations!$D$1,'Récapitulatif '!E40,0)","v":0},{"$f":"IF('Récapitulatif '!D40=Opérations!$E$1,'Récapitulatif '!E40,0)","v":0},{"$f":"IF('Récapitulatif '!D40=Opérations!$F$1,'Récapitulatif '!E40,0)","v":0},{"$f":"IF('Récapitulatif '!D40=Opérations!$G$1,'Récapitulatif '!E40,0)","v":0},{"$f":"IF('Récapitulatif '!D40=Opérations!$H$1,'Récapitulatif '!E40,0)","v":0},{"$f":"IF('Récapitulatif '!$D$28=Opérations!$I$1,'Récapitulatif '!E40,0)","v":0}]

{"sheet":"Récapitulatif ","index":3,"n_rows":73,"n_cols":11,"rows_kept":73,"cut":false,"hidden":false,"merged":[]}
["DATE","NOM EXPEDITEUR","NUMERO","OPERATION","SOMME EN FRANCS CFA","TAUX","SOMME NAIRA","DESTINATAIRE","Bénéfice activité","Dépense journaliere ","bénéfice Journée"]
[]
["2019-12-14","mm","hgjfgjfg","Exp MOMO",20000,550,11000,"uba256+3215236258"]
[null,"mm","hgjfgjfg","Exp MOMO",20000,550,11000,"uba256+3215236258"]
["2019-12-14","mm","hgjfgjfg","Retrait cash",20000,550,11000,"uba256+3215236258"]
["2019-12-14","mm","hgjfgjfg","Retrait cash",20000,550,11000,"uba256+3215236258"]
["2019-12-14","mm","hgjfgjfg","Remboursement",20000,550,11000,"uba256+3215236258"]
["2019-11-14","mm","hgjfgjfg","Remboursement",20000,550,11000,"uba256+3215236258"]
["2019-12-14","mm","hgjfgjfg","Remboursement",20000,550,11000,"uba256+3215236258"]
["2013-05-05","mm","hgjfgjfg","Remboursement",20000,550,11000,"uba256+3215236258"]
["2013-05-05","mm","hgjfgjfg","Retrait cash",20000,550,11000,"uba256+3215236258"]
["2013-05-05","mm","hgjfgjfg","Retrait cash",20000,550,11000,"uba256+3215236258"]
["2013-05-05","mm","hgjfgjfg","Retrait cash",20000,550,11000,"uba256+3215236258"]
["2013-05-05","mm","hgjfgjfg","Exp Banque",50000,550,27500,"uba256+3215236258"]
["2013-05-05","mm","hgjfgjfg","Exp Banque",50000,550,27500,"uba256+3215236258"]
["2013-05-05","mm","hgjfgjfg","Exp Banque",50000,550,27500,"uba256+3215236258"]
["2013-05-05","mm","hgjfgjfg","Exp Banque",50000,550,27500,"uba256+3215236258"]
[null,"mm","hgjfgjfg","Exp Banque",50000,550,27500,"uba256+3215236258"]
["2013-05-05",null,"hgjfgjfg","Exp Banque",50000]
["2005-02-02","ludi",5335,"Exp MOMO",500000,551,275500,"uba1235321245"]
["2005-02-02","ludi",5335,"Exp MOMO",500000,551,275500,"uba1235321245"]
["2005-02-02","ludi",5335,"Exp MOMO",500000,551,275500,"uba1235321245"]
["2005-02-02","ludi",691605335,"Remboursement",500000,551,275500,"uba1235321245"]
["2005-02-12","vv",691605335,"Prêt ",500000,551,275500,"uba1235321245"]
["2005-02-12","vv",691605335,"Prêt ",500000,551,275500,"uba1235321245"]
[]
["2015-05-12","popi",691562512,"Remboursement",1000000,550,550000]
["2014-12-12","popi",691562512,"Prêt ",1000000,550,550000,"momo"]
[null,"ivan",691605335,"Retrait Chèque",2000000,550,1100000,"ACCESS BANK_ 1234567892"]
["1963-05-12","ivan",691605335,"Retrait Chèque",2000000,550,1100000,"ACCESS BANK_ 1234567892"]
["2019-11-11","ivan",691605335,"Retrait Chèque",2000000,550,1100000,"ACCESS BANK_ 1234567892"]
[null,"ivan",691605335,"Retrait Chèque",2000000,550,1100000,"ACCESS BANK_ 1234567892"]
["2018-05-04","ivan",691605335,"Retrait Chèque",2000000,550,1100000,23143]
[]
[]
[]
[]
[]
[]
[]
[]
[]
[]
[]
[]
[]
[]
[]
[]
[]
[]
[]
[]
[]
[]
[]
[]
[]
[]
[]
[null,null,null,null,null,null,null,null,null,43795]
[]
[]
[]
[]
[]
[]
[]
[]
[]
[]
[]
[null,null,null,null,null,null,null,null,null,null,{"$f":"I73-J73","v":0}]

{"sheet":"Formulaire","index":4,"n_rows":18,"n_cols":4,"rows_kept":18,"cut":false,"hidden":false,"merged":[]}
[]
[]
[]
[null,"Date","2019-12-14"]
[]
[null,"Nom Expéditeur","mm"]
[]
[null,"Numéro de Téléphone","hgjfgjfg",656232524]
[]
[null,"Opération","Exp MOMO"]
[]
[null,"Montant en FRANC CFA",20000]
[]
[null,"Taux",550]
[]
[null,"Montant en Naira",{"$f":"(C12*C14)/1000","v":11000}]
[]
[null,"Destinataire","uba256+3215236258"]

{"sheet":"Tableau de Bord","index":5,"n_rows":0,"n_cols":0,"rows_kept":0,"cut":false,"hidden":false,"merged":[]}

{"sheet":"HISTORIQUES","index":6,"n_rows":23,"n_cols":2,"rows_kept":23,"cut":false,"hidden":false,"merged":[[3,0,3,1]]}
[]
[]
[]
[]
["Numero de Téléphone",655982346]
["Destinataire","(Tous)"]
["Mt Naira",2872.1]
[]
["HISTORIQUE","Somme de Mt Naira"]
[655982346,2872.1]
["momii",2872.1]
["Prêt ",2872.1]
["Prêt ",2872.1]
["momii",2872.1]
["Prêt ",2872.1]
["2019-11-28",14360.5]
["hbj",14360.5]
["Prêt ",14360.5]
["2019-12-28",11488.4]
["momii",11488.4]
["Exp MOMO",5744.2]
["Prêt ",5744.2]
["Total général",31593.100000000002]